[Event "Fast Chess"]
[Site "ChessKid.com"]
[Date "2020.04.24"]
[Round "2"]
[White "Li, Tobias"]
[Black "Sasse, Gabriel"]
[Result "1-0"]
[ECO "C50"]
[WhiteElo "1344"]
[BlackElo "1250"]
[PlyCount "115"]
[EventDate "2020.??.??"]
[TimeControl "600"]
[WhiteClock "0:07:04"]
[BlackClock "0:05:31"]

1. e4 {[%emt 0:00:01]} e5 {[%emt 0:00:00]} 2. Nf3 {[%emt 0:00:01]} Nc6 {
[%emt 0:00:01]} 3. Bc4 {[%emt 0:00:01]} Bc5 {[%emt 0:00:00]} 4. O-O {[%emt 0:
00:02]} h6 {[%emt 0:00:00]} 5. c3 {[%emt 0:00:02]} Nf6 {[%emt 0:00:01]} 6. d4 {
[%emt 0:00:01]} O-O {[%emt 0:00:00]} 7. Be3 {[%emt 0:00:04]} exd4 {[%emt 0:00:
02]} 8. Bxd4 {[%emt 0:00:12]} Bxd4 {[%emt 0:00:02]} 9. cxd4 {[%emt 0:00:03]}
Nxe4 {[%emt 0:00:11]} 10. Re1 {[%emt 0:00:04]} Nf6 {[%emt 0:00:03]} 11. d5 {
[%emt 0:00:08]} Na5 {[%emt 0:00:03]} 12. Bb3 {[%emt 0:00:02]} Nxb3 {[%emt 0:00:
02]} 13. Qxb3 {[%emt 0:00:01]} Re8 {[%emt 0:00:03]} 14. Nc3 {[%emt 0:00:04]}
Rxe1+ {[%emt 0:00:03]} 15. Rxe1 {[%emt 0:00:03]} d6 {[%emt 0:00:09]} 16. h3 {
[%emt 0:00:18]} Ne8 {[%emt 0:00:05]} 17. Qa4 {[%emt 0:00:16]} Bd7 {[%emt 0:00:
04]} 18. Qe4 {[%emt 0:00:06]} Nf6 {[%emt 0:00:09]} 19. Qc4 {[%emt 0:00:04]} b5
{[%emt 0:00:05]} 20. Nxb5 {[%emt 0:00:06]} Bxb5 {[%emt 0:00:01]} 21. Qxb5 {
[%emt 0:00:03]} Rb8 {[%emt 0:00:01]} 22. Qa5 {[%emt 0:00:21]} Rxb2 {[%emt 0:00:
05]} 23. Qxa7 {[%emt 0:00:01]} Nxd5 {[%emt 0:00:05]} 24. Rd1 {[%emt 0:00:10]}
Nb4 {[%emt 0:00:08]} 25. Rc1 {[%emt 0:00:07]} Rxa2 {[%emt 0:00:04]} 26. Qxc7 {
[%emt 0:00:04]} Qxc7 {[%emt 0:00:01]} 27. Rxc7 {[%emt 0:00:01]} d5 {[%emt 0:00:
09]} 28. Rb7 {[%emt 0:00:05]} Nd3 {[%emt 0:00:03]} 29. Rd7 {[%emt 0:00:05]}
Rxf2 {[%emt 0:00:03]} 30. Rxd5 {[%emt 0:00:06]} Ra2 {[%emt 0:00:11]} 31. Rxd3 {
[%emt 0:00:03]} Ra1+ {[%emt 0:00:01]} 32. Kh2 {[%emt 0:00:03]} g5 {[%emt 0:00:
01]} 33. Rd8+ {[%emt 0:00:03]} Kg7 {[%emt 0:00:02]} 34. Rd7 {[%emt 0:00:06]}
Kg6 {[%emt 0:00:02]} 35. Ne5+ {[%emt 0:00:04]} Kg7 {[%emt 0:00:01]} 36. Rxf7+ {
[%emt 0:00:06]} Kg8 {[%emt 0:00:02]} 37. Rb7 {[%emt 0:00:02]} Re1 {[%emt 0:00:
02]} 38. Nf3 {[%emt 0:00:01]} Ra1 {[%emt 0:00:04]} 39. h4 {[%emt 0:00:07]} gxh4
{[%emt 0:00:02]} 40. Nxh4 {[%emt 0:00:01]} Ra4 {[%emt 0:00:02]} 41. Nf3 {
[%emt 0:00:05]} h5 {[%emt 0:00:03]} 42. Kh3 {[%emt 0:00:04]} Kf8 {[%emt 0:00:
05]} 43. Rh7 {[%emt 0:00:04]} Kg8 {[%emt 0:00:04]} 44. Rxh5 {[%emt 0:00:05]}
Kg7 {[%emt 0:00:01]} 45. Rb5 {[%emt 0:00:04]} Kf6 {[%emt 0:00:02]} 46. g4 {
[%emt 0:00:06]} Kg6 {[%emt 0:00:03]} 47. Kh4 {[%emt 0:00:11]} Rc4 {[%emt 0:00:
04]} 48. Ne5+ {[%emt 0:00:04]} Kf6 {[%emt 0:00:02]} 49. Nxc4 {[%emt 0:00:00]}
Ke6 {[%emt 0:00:01]} 50. g5 {[%emt 0:00:02]} Kf7 {[%emt 0:00:02]} 51. Rb6 {
[%emt 0:00:02]} Kg7 {[%emt 0:00:02]} 52. Ne5 {[%emt 0:00:08]} Kh7 {[%emt 0:00:
04]} 53. Kh5 {[%emt 0:00:05]} Kg7 {[%emt 0:00:01]} 54. Rb7+ {[%emt 0:00:03]}
Kg8 {[%emt 0:00:02]} 55. Kg6 {[%emt 0:00:01]} Kf8 {[%emt 0:00:02]} 56. Kf6 {
[%emt 0:00:03]} Kg8 {[%emt 0:00:01]} 57. g6 {[%emt 0:00:03]} Kf8 {[%emt 0:00:
05]} 58. Rb8# {[%emt 0:00:02] OnlyHungryKiwi won by checkmate} 1-0

[Event "Fast Chess"]
[Site "ChessKid.com"]
[Date "2020.04.24"]
[Round "3"]
[White "Sasse, Gabriel"]
[Black "Georgiev, Maximilian"]
[Result "0-1"]
[ECO "C50"]
[WhiteElo "1247"]
[BlackElo "1480"]
[Annotator "Ausschalten Verteidiger"]
[PlyCount "47"]
[EventDate "2020.??.??"]
[TimeControl "600"]
[WhiteClock "0:08:47"]
[BlackClock "0:08:46"]

1. e4 {[%emt 0:00:01]} e5 {[%emt 0:00:01]} 2. Nf3 {[%emt 0:00:00]} Nc6 {
[%emt 0:00:01]} 3. Bc4 {[%emt 0:00:01]} h6 {[%emt 0:00:01]} 4. h3 {[%emt 0:00:
02]} Nf6 {[%emt 0:00:02]} 5. Nc3 {[%emt 0:00:00]} Nxe4 {[%emt 0:00:02]} 6. Nxe4
{[%emt 0:00:02]} d5 {[%emt 0:00:01]} 7. Bxd5 {[%emt 0:00:01]} Qxd5 {[%emt 0:00:
02]} 8. Nc3 {[%emt 0:00:01]} Qd8 {[%emt 0:00:02]} 9. O-O {[%emt 0:00:02]} Be7 {
[%emt 0:00:01]} 10. d3 {[%emt 0:00:06]} O-O {[%emt 0:00:03]} 11. Ne1 {[%emt 0:
00:02]} Bb4 {[%emt 0:00:06]} 12. Qf3 {[%emt 0:00:04]} Nd4 {[%emt 0:00:12]} 13.
Qd1 {[%emt 0:00:02]} Nc6 {[%emt 0:00:05]} 14. a3 {[%emt 0:00:02]} Bxc3 {
[%emt 0:00:02]} 15. bxc3 {[%emt 0:00:01]} e4 {[%emt 0:00:01]} 16. f3 {[%emt 0:
00:13]} exd3 {[%emt 0:00:05]} 17. Nxd3 {[%emt 0:00:01]} Bf5 {[%emt 0:00:09]}
18. Rb1 {[%emt 0:00:04]} b6 {[%emt 0:00:06]} 19. g4 {[%emt 0:00:02]} Bh7 {
[%emt 0:00:03]} 20. Nb4 {[%emt 0:00:16]} Qxd1 {[%emt 0:00:03]} 21. Rxd1 {
[%emt 0:00:02]} Nxb4 $3 {[%emt 0:00:02]} 22. axb4 {[%emt 0:00:05]} Bxc2 {
[%emt 0:00:02]} 23. Rd2 {[%emt 0:00:01]} Bxb1 {[%emt 0:00:01]} 24. Ba3 {
[%emt 0:00:03] TallSnazzyBall won by resignation} 0-1

[Event "Fast Chess"]
[Site "ChessKid.com"]
[Date "2020.04.24"]
[Round "3"]
[White "Dai, Lana"]
[Black "Li, Tobias"]
[Result "0-1"]
[ECO "C50"]
[WhiteElo "1259"]
[BlackElo "1351"]
[Annotator "Abtausch, Figurenverlust"]
[PlyCount "118"]
[EventDate "2020.??.??"]
[TimeControl "600"]
[WhiteClock "0:05:55"]
[BlackClock "0:04:38"]

1. e4 {[%emt 0:00:03]} e5 {[%emt 0:00:03]} 2. Nf3 {[%emt 0:00:01]} Nc6 {
[%emt 0:00:03]} 3. Nc3 {[%emt 0:00:01]} Nf6 {[%emt 0:00:02]} 4. Bc4 {[%emt 0:
00:01]} Bc5 {[%emt 0:00:02]} 5. h3 {[%emt 0:00:02]} h6 {[%emt 0:00:02]} 6. a3 {
[%emt 0:00:01]} a6 {[%emt 0:00:01]} 7. O-O {[%emt 0:00:02]} O-O {[%emt 0:00:02]
} 8. d3 {[%emt 0:00:07]} d6 {[%emt 0:00:02]} 9. b4 {[%emt 0:00:02]} Ba7 {
[%emt 0:00:08]} 10. Bd5 {[%emt 0:00:11]} Bd4 {[%emt 0:00:03]} 11. Bxc6 $2 {
[%emt 0:00:17]} Bxc3 {[%emt 0:00:03]} 12. Bxb7 {[%emt 0:00:04]} Bxb7 {[%emt 0:
00:04]} 13. Ra2 {[%emt 0:00:05]} Bd4 {[%emt 0:00:15]} 14. Nxd4 {[%emt 0:00:04]}
exd4 {[%emt 0:00:02]} 15. Qf3 {[%emt 0:00:10]} Qe7 {[%emt 0:00:18]} 16. Re1 {
[%emt 0:00:18]} Qe6 {[%emt 0:00:13]} 17. Rb2 {[%emt 0:00:14]} Bc6 {[%emt 0:00:
11]} 18. Qg3 {[%emt 0:00:23]} Rfe8 {[%emt 0:00:09]} 19. Bxh6 {[%emt 0:00:04]}
Nh5 {[%emt 0:00:06]} 20. Qg5 {[%emt 0:00:14]} Qxh6 {[%emt 0:00:07]} 21. Qxh6 {
[%emt 0:00:05]} gxh6 {[%emt 0:00:03]} 22. g4 {[%emt 0:00:06]} Nf6 {[%emt 0:00:
07]} 23. Kh2 {[%emt 0:00:28]} a5 {[%emt 0:00:10]} 24. b5 {[%emt 0:00:04]} Bd7 {
[%emt 0:00:03]} 25. b6 {[%emt 0:00:05]} Rab8 {[%emt 0:00:05]} 26. Reb1 {
[%emt 0:00:08]} cxb6 {[%emt 0:00:02]} 27. Rxb6 {[%emt 0:00:10]} Rxb6 {[%emt 0:
00:05]} 28. Rxb6 {[%emt 0:00:03]} Ba4 {[%emt 0:00:03]} 29. Rxd6 {[%emt 0:00:04]
} Bxc2 {[%emt 0:00:04]} 30. Rxf6 {[%emt 0:00:03]} Bxd3 {[%emt 0:00:02]} 31.
Rxh6 {[%emt 0:00:07]} Bxe4 {[%emt 0:00:02]} 32. g5 {[%emt 0:00:03]} Kg7 {
[%emt 0:00:10]} 33. h4 {[%emt 0:00:04]} Re6 {[%emt 0:00:02]} 34. Rxe6 {[%emt 0:
00:03]} fxe6 {[%emt 0:00:03]} 35. f4 {[%emt 0:00:02]} Kg6 {[%emt 0:00:05]} 36.
Kg3 {[%emt 0:00:05]} Kf5 {[%emt 0:00:04]} 37. h5 {[%emt 0:00:07]} e5 {[%emt 0:
00:04]} 38. h6 {[%emt 0:00:05]} Kg6 {[%emt 0:00:01]} 39. Kg4 {[%emt 0:00:11]}
d3 {[%emt 0:00:03]} 40. fxe5 {[%emt 0:00:04]} d2 {[%emt 0:00:03]} 41. Kf4 {
[%emt 0:00:08]} d1=Q {[%emt 0:00:16]} 42. e6 {[%emt 0:00:01]} Qd6+ {[%emt 0:00:
13]} 43. Kxe4 {[%emt 0:00:07]} Qxe6+ {[%emt 0:00:01]} 44. Kf4 {[%emt 0:00:02]}
Qf5+ {[%emt 0:00:02]} 45. Ke3 {[%emt 0:00:03]} Qxg5+ {[%emt 0:00:01]} 46. Kd4 {
[%emt 0:00:04]} Qxh6 {[%emt 0:00:02]} 47. Kc4 {[%emt 0:00:00]} Qg5 {[%emt 0:00:
01]} 48. Kb3 {[%emt 0:00:04]} Qd5+ {[%emt 0:00:00]} 49. Kb2 {[%emt 0:00:03]}
Qb5+ {[%emt 0:00:01]} 50. Ka2 {[%emt 0:00:02]} Qc4+ {[%emt 0:00:02]} 51. Kb2 {
[%emt 0:00:02]} Qd3 {[%emt 0:00:01]} 52. Ka2 {[%emt 0:00:03]} Qc3 {[%emt 0:00:
01]} 53. a4 {[%emt 0:00:04]} Kf5 {[%emt 0:00:00]} 54. Kb1 {[%emt 0:00:03]} Qd2
{[%emt 0:00:02]} 55. Ka1 {[%emt 0:00:03]} Ke4 {[%emt 0:00:00]} 56. Kb1 {
[%emt 0:00:01]} Kd4 {[%emt 0:00:00]} 57. Ka1 {[%emt 0:00:01]} Kc4 {[%emt 0:00:
00]} 58. Kb1 {[%emt 0:00:01]} Kb3 {[%emt 0:00:02]} 59. Ka1 {[%emt 0:00:02]}
Qb2# {[%emt 0:00:03] OnlyHungryKiwi won by checkmate} 0-1

[Event "Fast Chess"]
[Site "ChessKid.com"]
[Date "2020.04.24"]
[Round "1"]
[White "Georgiev, Maximilian"]
[Black "Sasse, Gabriel"]
[Result "1-0"]
[ECO "C50"]
[WhiteElo "1483"]
[BlackElo "1241"]
[PlyCount "24"]
[EventDate "2020.??.??"]
[TimeControl "300+10"]
[WhiteClock "0:04:23"]
[BlackClock "0:04:45"]

1. e4 {[%emt 0:00:10]} e5 {[%emt 0:00:11]} 2. Nf3 {[%emt 0:00:10]} Nc6 {
[%emt 0:00:10]} 3. Bc4 {[%emt 0:00:10]} Bc5 {[%emt 0:00:10]} 4. O-O {[%emt 0:
00:10]} h6 {[%emt 0:00:10]} 5. Nc3 {[%emt 0:00:10]} Nf6 {[%emt 0:00:12]} 6. h3
{[%emt 0:00:11]} Nxe4 {[%emt 0:00:10]} 7. Nxe4 {[%emt 0:00:11]} Bb6 {[%emt 0:
00:19]} 8. Nc3 {[%emt 0:00:11]} Nd4 {[%emt 0:00:16]} 9. Nxe5 {[%emt 0:00:13]}
Qg5 {[%emt 0:00:16]} 10. Nxf7 {[%emt 0:00:15]} Qg6 {[%emt 0:00:19]} 11. Nxh8 {
[%emt 0:00:13]} Qg5 {[%emt 0:00:11]} 12. d3 {[%emt 0:00:12]} Qd8 {[%emt 0:00:
15] TallSnazzyBall won by resignation} 1-0

[Event "Fast Chess"]
[Site "ChessKid.com"]
[Date "2020.04.24"]
[Round "2"]
[White "Sasse, Gabriel"]
[Black "Halimi, Dorian"]
[Result "1-0"]
[ECO "C57"]
[WhiteElo "1247"]
[BlackElo "1128"]
[Annotator "einzügiger Einsteller"]
[PlyCount "21"]
[EventDate "2020.??.??"]
[TimeControl "300+10"]
[WhiteClock "0:04:20"]
[BlackClock "0:04:46"]

1. e4 {[%emt 0:00:11]} e5 {[%emt 0:00:11]} 2. Nf3 {[%emt 0:00:10]} Nc6 {
[%emt 0:00:16]} 3. Bc4 {[%emt 0:00:11]} Nf6 {[%emt 0:00:11]} 4. Ng5 {[%emt 0:
00:11]} d5 {[%emt 0:00:25]} 5. exd5 {[%emt 0:00:11]} Nxd5 {[%emt 0:00:10]} 6.
Nc3 {[%emt 0:00:11]} Qxg5 {[%emt 0:00:14]} 7. d4 {[%emt 0:00:12]} Nxc3 {
[%emt 0:00:15]} 8. bxc3 {[%emt 0:00:12]} exd4 {[%emt 0:00:12]} 9. Bxg5 {
[%emt 0:00:12]} dxc3 {[%emt 0:00:12]} 10. Qf3 {[%emt 0:00:12]} Na5 {[%emt 0:00:
13]} 11. Qxf7# {[%emt 0:00:12] LimeFarActor won by checkmate} 1-0

[Event "Fast Chess"]
[Site "ChessKid.com"]
[Date "2020.04.24"]
[Round "1"]
[White "Halimi, Dorian"]
[Black "Li, Tobias"]
[Result "0-1"]
[ECO "C20"]
[WhiteElo "1133"]
[BlackElo "1365"]
[Annotator "auf Dauerschach spielen"]
[PlyCount "72"]
[EventDate "2020.??.??"]
[TimeControl "300+10"]
[WhiteClock "0:02:30"]
[BlackClock "0:02:44"]

1. e4 {[%emt 0:00:11]} e5 {[%emt 0:00:11]} 2. Qh5 {[%emt 0:00:11]} Nc6 {
[%emt 0:00:10]} 3. Bc4 {[%emt 0:00:10]} g6 {[%emt 0:00:12]} 4. Qf3 {[%emt 0:00:
11]} Nf6 {[%emt 0:00:11]} 5. Nh3 {[%emt 0:00:11]} Nd4 {[%emt 0:00:11]} 6. Qd3 {
[%emt 0:00:17]} Bg7 {[%emt 0:00:14]} 7. Ng5 {[%emt 0:00:11]} O-O {[%emt 0:00:
14]} 8. Nxf7 {[%emt 0:00:11]} Rxf7 {[%emt 0:00:12]} 9. Bxf7+ {[%emt 0:00:11]}
Kxf7 {[%emt 0:00:11]} 10. Qc4+ {[%emt 0:00:11]} Kf8 {[%emt 0:00:14]} 11. Nc3 {
[%emt 0:00:13]} Nxc2+ {[%emt 0:00:23]} 12. Kd1 {[%emt 0:00:14]} Nxa1 {[%emt 0:
00:09]} 13. Nd5 {[%emt 0:00:14]} c6 {[%emt 0:00:16]} 14. Nxf6 {[%emt 0:00:11]}
Qxf6 {[%emt 0:00:14]} 15. Re1 {[%emt 0:00:18]} Qxf2 {[%emt 0:00:19]} 16. g4 {
[%emt 0:00:27]} Ke8 {[%emt 0:00:28]} 17. Qg8+ {[%emt 0:00:14]} Ke7 {[%emt 0:00:
12]} 18. Qxg7+ {[%emt 0:00:13]} Kd6 {[%emt 0:00:12]} 19. d4 {[%emt 0:00:17]}
Qxd4+ {[%emt 0:00:17]} 20. Bd2 {[%emt 0:00:13]} Qf2 {[%emt 0:00:13]} 21. Qxh7 {
[%emt 0:00:14]} Kc7 {[%emt 0:00:18]} 22. Qxg6 {[%emt 0:00:12]} Qxh2 {[%emt 0:
00:13]} 23. g5 {[%emt 0:00:11]} d6 {[%emt 0:00:27]} 24. Qf7+ {[%emt 0:00:14]}
Kb8 {[%emt 0:00:11]} 25. g6 {[%emt 0:00:11]} Qg3 {[%emt 0:00:12]} 26. g7 {
[%emt 0:00:15]} Qg4+ {[%emt 0:00:18]} 27. Re2 {[%emt 0:00:13]} Be6 {[%emt 0:00:
13]} 28. Qe8+ {[%emt 0:00:22]} Kc7 {[%emt 0:00:12]} 29. Qxa8 {[%emt 0:00:17]}
Qxg7 {[%emt 0:00:12]} 30. Qxa7 {[%emt 0:00:11]} Qg1+ {[%emt 0:00:10]} 31. Be1 {
[%emt 0:00:13]} Qf1 {[%emt 0:00:15]} 32. b4 {[%emt 0:00:16]} Bg4 {[%emt 0:00:
15]} 33. Qa5+ {[%emt 0:00:16]} Kb8 {[%emt 0:00:16]} 34. Qd8+ {[%emt 0:00:13]}
Ka7 {[%emt 0:00:11]} 35. Qxd6 {[%emt 0:00:16]} Qxe2+ {[%emt 0:00:13]} 36. Kc1 {
[%emt 0:00:14]} Qc2# {[%emt 0:00:10] OnlyHungryKiwi won by checkmate} 0-1

[Event "Fast Chess"]
[Site "ChessKid.com"]
[Date "2020.04.24"]
[Round "1"]
[White "Horvath, Alexander"]
[Black "Li, Patrick"]
[Result "0-1"]
[ECO "C55"]
[WhiteElo "1311"]
[BlackElo "1102"]
[Annotator "Preussisch richtig spielen; Abzug"]
[PlyCount "20"]
[EventDate "2020.??.??"]
[TimeControl "300+10"]
[WhiteClock "0:04:19"]
[BlackClock "0:04:31"]

1. e4 {[%emt 0:00:11]} e5 {[%emt 0:00:12]} 2. Nf3 {[%emt 0:00:11]} Nc6 {
[%emt 0:00:12]} 3. Nc3 {[%emt 0:00:11]} Nf6 {[%emt 0:00:11]} 4. Bc4 {[%emt 0:
00:11]} Bc5 {[%emt 0:00:12]} 5. Ng5 {[%emt 0:00:12]} d5 {[%emt 0:00:12]} 6.
exd5 {[%emt 0:00:12]} Nxd5 {[%emt 0:00:13]} 7. d3 $4 {[%emt 0:00:14]} (7. Bxd5
Qxg5 8. d4 Qg6 9. dxc5) 7... Nxc3 {[%emt 0:00:22]} 8. bxc3 {[%emt 0:00:14]} Qf6
{[%emt 0:00:19]} 9. Bxf7+ {[%emt 0:00:16]} Ke7 {[%emt 0:00:15]} 10. Bb3 $4 {
[%emt 0:00:17]} Qxf2# {[%emt 0:00:13] WideClassyQuiz won by checkmate} 0-1

[Event "Fast Chess"]
[Site "ChessKid.com"]
[Date "2020.04.24"]
[Round "2"]
[White "Li, Patrick"]
[Black "Georgiev, Maximilian"]
[Result "0-1"]
[ECO "C55"]
[WhiteElo "1100"]
[BlackElo "1485"]
[PlyCount "48"]
[EventDate "2020.??.??"]
[TimeControl "300+10"]
[WhiteClock "0:03:52"]
[BlackClock "0:02:56"]

1. e4 {[%emt 0:00:11]} e5 {[%emt 0:00:10]} 2. Nf3 {[%emt 0:00:10]} Nc6 {
[%emt 0:00:10]} 3. Nc3 {[%emt 0:00:10]} Nf6 {[%emt 0:00:11]} 4. Bc4 {[%emt 0:
00:10]} h6 {[%emt 0:00:11]} 5. O-O {[%emt 0:00:12]} Nxe4 {[%emt 0:00:10]} 6.
Nxe4 {[%emt 0:00:12]} d5 {[%emt 0:00:10]} 7. Bd3 {[%emt 0:00:12]} dxe4 {
[%emt 0:00:11]} 8. Bxe4 {[%emt 0:00:13]} Be7 {[%emt 0:00:10]} 9. Bxc6+ {
[%emt 0:00:13]} bxc6 {[%emt 0:00:11]} 10. Qe1 {[%emt 0:00:16]} O-O {[%emt 0:00:
16]} 11. Nxe5 {[%emt 0:00:12]} Qd6 {[%emt 0:00:18]} 12. Nc4 {[%emt 0:00:13]}
Qd7 {[%emt 0:00:14]} 13. Ne5 {[%emt 0:00:13]} Qd5 {[%emt 0:00:15]} 14. c4 {
[%emt 0:00:16]} Qc5 {[%emt 0:00:17]} 15. Qe2 {[%emt 0:00:20]} Bf6 {[%emt 0:00:
17]} 16. Nd3 {[%emt 0:00:13]} Qe7 {[%emt 0:00:14]} 17. Qd1 {[%emt 0:00:16]} Ba6
{[%emt 0:00:13]} 18. Rb1 {[%emt 0:00:26]} Bxc4 {[%emt 0:00:11]} 19. Nf4 {
[%emt 0:00:18]} Bxf1 {[%emt 0:00:12]} 20. Kxf1 {[%emt 0:00:11]} Qe4 {[%emt 0:
00:20]} 21. Ra1 {[%emt 0:00:29]} Qxf4 {[%emt 0:00:11]} 22. d3 {[%emt 0:00:13]}
Qxh2 {[%emt 0:00:13]} 23. g3 {[%emt 0:00:17]} Rfe8 {[%emt 0:00:13]} 24. Bf4 {
[%emt 0:00:27]} Qh1# {[%emt 0:00:13] TallSnazzyBall won by checkmate} 0-1

[Event "Fast Chess"]
[Site "ChessKid.com"]
[Date "2020.04.24"]
[Round "2"]
[White "Li, Tobias"]
[Black "Horvath, Alexander"]
[Result "1-0"]
[ECO "C55"]
[WhiteElo "1372"]
[BlackElo "1303"]
[Annotator "Springergabel auf K+D"]
[PlyCount "49"]
[EventDate "2020.??.??"]
[TimeControl "300+10"]
[WhiteClock "0:03:42"]
[BlackClock "0:03:51"]

1. e4 {[%emt 0:00:10]} e5 {[%emt 0:00:11]} 2. Nf3 {[%emt 0:00:10]} Nf6 {
[%emt 0:00:11]} 3. Nc3 {[%emt 0:00:10]} Nc6 {[%emt 0:00:11]} 4. Bc4 {[%emt 0:
00:11]} Bc5 {[%emt 0:00:10]} 5. O-O {[%emt 0:00:13]} Ng4 {[%emt 0:00:15]} 6. h3
{[%emt 0:00:11]} Bxf2+ {[%emt 0:00:11]} 7. Rxf2 {[%emt 0:00:11]} Nxf2 {[%emt 0:
00:11]} 8. Kxf2 {[%emt 0:00:11]} Qf6 {[%emt 0:00:30]} 9. Kg1 {[%emt 0:00:15]}
Nd4 {[%emt 0:00:13]} 10. Nxd4 {[%emt 0:00:12]} exd4 {[%emt 0:00:10]} 11. Ne2 {
[%emt 0:00:15]} d6 {[%emt 0:00:13]} 12. c3 {[%emt 0:00:12]} dxc3 {[%emt 0:00:
11]} 13. Nxc3 {[%emt 0:00:10]} Qg6 {[%emt 0:00:14]} 14. Qf3 {[%emt 0:00:16]}
O-O {[%emt 0:00:12]} 15. Nd5 {[%emt 0:00:14]} f5 $2 {[%emt 0:00:11]} 16. Ne7+ {
[%emt 0:00:14]} Kh8 {[%emt 0:00:15]} 17. Nxg6+ {[%emt 0:00:11]} hxg6 {[%emt 0:
00:11]} 18. exf5 {[%emt 0:00:12]} Rxf5 {[%emt 0:00:12]} 19. Qg3 {[%emt 0:00:21]
} g5 {[%emt 0:00:13]} 20. h4 {[%emt 0:00:14]} Rc5 {[%emt 0:00:16]} 21. b3 {
[%emt 0:00:16]} Bd7 {[%emt 0:00:16]} 22. hxg5 {[%emt 0:00:11]} Kh7 {[%emt 0:00:
15]} 23. g6+ {[%emt 0:00:19]} Kh8 {[%emt 0:00:13]} 24. Qh4+ {[%emt 0:00:12]}
Rh5 {[%emt 0:00:16]} 25. Qxh5# {[%emt 0:00:09] OnlyHungryKiwi won by checkmate}
1-0

[Event "Fast Chess"]
[Site "ChessKid.com"]
[Date "2020.04.24"]
[Round "3"]
[White "Georgiev, Maximilian"]
[Black "Li, Tobias"]
[Result "0-1"]
[ECO "C50"]
[WhiteElo "1475"]
[BlackElo "1383"]
[PlyCount "182"]
[EventDate "2020.??.??"]
[TimeControl "300+10"]
[WhiteClock "0:00:40"]
[BlackClock "0:00:30"]

1. e4 {[%emt 0:00:10]} e5 {[%emt 0:00:10]} 2. Nf3 {[%emt 0:00:10]} Nc6 {
[%emt 0:00:11]} 3. Bc4 {[%emt 0:00:10]} Bc5 {[%emt 0:00:12]} 4. O-O {[%emt 0:
00:10]} Nf6 {[%emt 0:00:10]} 5. Nc3 {[%emt 0:00:11]} O-O {[%emt 0:00:10]} 6. d3
{[%emt 0:00:10]} d6 {[%emt 0:00:10]} 7. Bg5 {[%emt 0:00:11]} h6 {[%emt 0:00:11]
} 8. Bh4 {[%emt 0:00:11]} Bg4 {[%emt 0:00:10]} 9. h3 {[%emt 0:00:10]} Bh5 {
[%emt 0:00:11]} 10. a3 {[%emt 0:00:14]} g5 {[%emt 0:00:20]} 11. Bg3 {[%emt 0:
00:11]} Nd4 {[%emt 0:00:11]} 12. b4 {[%emt 0:00:14]} Bxf3 {[%emt 0:00:13]} 13.
gxf3 {[%emt 0:00:11]} Bb6 {[%emt 0:00:14]} 14. Nd5 {[%emt 0:00:16]} Nxd5 {
[%emt 0:00:13]} 15. Bxd5 {[%emt 0:00:10]} c6 {[%emt 0:00:25]} 16. Ba2 {[%emt 0:
00:11]} Qf6 {[%emt 0:00:13]} 17. Kg2 {[%emt 0:00:15]} Rfd8 {[%emt 0:00:44]} 18.
c3 {[%emt 0:00:12]} Nb5 {[%emt 0:00:13]} 19. c4 {[%emt 0:00:12]} Nc7 {[%emt 0:
00:12]} 20. Bb3 {[%emt 0:00:23]} c5 {[%emt 0:00:14]} 21. bxc5 {[%emt 0:00:11]}
Bxc5 {[%emt 0:00:10]} 22. a4 {[%emt 0:00:11]} Bd4 {[%emt 0:00:21]} 23. Rb1 {
[%emt 0:00:14]} Na6 {[%emt 0:00:29]} 24. Qd2 {[%emt 0:00:15]} Nc5 {[%emt 0:00:
15]} 25. Bd1 {[%emt 0:00:14]} Rab8 {[%emt 0:00:23]} 26. Bb3 {[%emt 0:00:14]}
Nxb3 {[%emt 0:00:12]} 27. Rxb3 {[%emt 0:00:10]} b6 {[%emt 0:00:18]} 28. Rbb1 {
[%emt 0:00:27]} Bc5 {[%emt 0:00:15]} 29. Qc3 {[%emt 0:00:17]} Bd4 {[%emt 0:00:
11]} 30. Qd2 {[%emt 0:00:11]} a6 {[%emt 0:00:16]} 31. Rb3 {[%emt 0:00:16]} Kg7
{[%emt 0:00:17]} 32. Ra3 {[%emt 0:00:11]} b5 {[%emt 0:00:17]} 33. cxb5 {
[%emt 0:00:14]} axb5 {[%emt 0:00:11]} 34. axb5 {[%emt 0:00:10]} Rxb5 {[%emt 0:
00:11]} 35. Ra5 {[%emt 0:00:17]} Rbb8 {[%emt 0:00:14]} 36. Ra2 {[%emt 0:00:15]}
Bc5 {[%emt 0:00:16]} 37. Rc1 {[%emt 0:00:15]} Ra8 {[%emt 0:00:14]} 38. Rxa8 {
[%emt 0:00:12]} Rxa8 {[%emt 0:00:11]} 39. Qc3 {[%emt 0:00:14]} Re8 {[%emt 0:00:
13]} 40. Rf1 {[%emt 0:00:16]} Bd4 {[%emt 0:00:13]} 41. Qd2 {[%emt 0:00:13]} Bc5
{[%emt 0:00:11]} 42. Qd1 {[%emt 0:00:16]} Rb8 {[%emt 0:00:13]} 43. Qd2 {
[%emt 0:00:14]} Bb4 {[%emt 0:00:12]} 44. Qe2 {[%emt 0:00:14]} Bc5 {[%emt 0:00:
11]} 45. Qd1 {[%emt 0:00:16]} Rb2 {[%emt 0:00:16]} 46. Qc1 {[%emt 0:00:19]} Rb8
{[%emt 0:00:12]} 47. Qc4 {[%emt 0:00:14]} Rc8 {[%emt 0:00:11]} 48. Qa6 {
[%emt 0:00:14]} Rc7 {[%emt 0:00:11]} 49. Qa5 {[%emt 0:00:15]} Qe7 {[%emt 0:00:
12]} 50. Qd2 {[%emt 0:00:15]} Rb7 {[%emt 0:00:13]} 51. Rc1 {[%emt 0:00:16]} Rc7
{[%emt 0:00:11]} 52. Qe2 {[%emt 0:00:14]} Qd7 {[%emt 0:00:14]} 53. Kh2 {
[%emt 0:00:13]} d5 {[%emt 0:00:11]} 54. exd5 {[%emt 0:00:12]} Qxd5 {[%emt 0:00:
11]} 55. Kg2 {[%emt 0:00:12]} f6 {[%emt 0:00:13]} 56. Qd1 {[%emt 0:00:20]} Bd6
{[%emt 0:00:12]} 57. Qe2 {[%emt 0:00:15]} Rxc1 {[%emt 0:00:12]} 58. Qd2 {
[%emt 0:00:18]} Rc7 {[%emt 0:00:11]} 59. Qb2 {[%emt 0:00:15]} Qb7 {[%emt 0:00:
14]} 60. Qxb7 {[%emt 0:00:12]} Rxb7 {[%emt 0:00:11]} 61. d4 {[%emt 0:00:13]}
Rd7 {[%emt 0:00:12]} 62. dxe5 {[%emt 0:00:11]} Bxe5 {[%emt 0:00:11]} 63. Bxe5 {
[%emt 0:00:10]} fxe5 {[%emt 0:00:12]} 64. Kf1 {[%emt 0:00:10]} Kf6 {[%emt 0:00:
11]} 65. Ke2 {[%emt 0:00:10]} Kf5 {[%emt 0:00:12]} 66. Ke3 {[%emt 0:00:10]} Rd8
{[%emt 0:00:12]} 67. Ke2 {[%emt 0:00:15]} h5 {[%emt 0:00:10]} 68. Ke3 {[%emt 0:
00:11]} g4 {[%emt 0:00:11]} 69. fxg4+ {[%emt 0:00:10]} hxg4 {[%emt 0:00:11]}
70. hxg4+ {[%emt 0:00:10]} Kxg4 {[%emt 0:00:10]} 71. f3+ {[%emt 0:00:10]} Kf5 {
[%emt 0:00:11]} 72. Kf2 {[%emt 0:00:12]} Re8 {[%emt 0:00:14]} 73. Ke3 {[%emt 0:
00:12]} e4 {[%emt 0:00:12]} 74. fxe4+ {[%emt 0:00:11]} Rxe4+ {[%emt 0:00:11]}
75. Kf2 {[%emt 0:00:10]} Kf4 {[%emt 0:00:10]} 76. Kf1 {[%emt 0:00:27]} Ra4 {
[%emt 0:00:12]} 77. Ke2 {[%emt 0:00:12]} Ra3 {[%emt 0:00:11]} 78. Kd2 {[%emt 0:
00:11]} Rh3 {[%emt 0:00:13]} 79. Kc2 {[%emt 0:00:11]} Ke4 {[%emt 0:00:10]} 80.
Kd2 {[%emt 0:00:12]} Rg3 {[%emt 0:00:11]} 81. Kc2 {[%emt 0:00:12]} Kd4 {
[%emt 0:00:11]} 82. Kb2 {[%emt 0:00:12]} Kc4 {[%emt 0:00:11]} 83. Ka2 {[%emt 0:
00:10]} Kb4 {[%emt 0:00:10]} 84. Kb2 {[%emt 0:00:10]} Rg2+ {[%emt 0:00:10]} 85.
Kc1 {[%emt 0:00:10]} Kc3 {[%emt 0:00:10]} 86. Kd1 {[%emt 0:00:10]} Ra2 {
[%emt 0:00:11]} 87. Ke1 {[%emt 0:00:11]} Kd3 {[%emt 0:00:10]} 88. Kf1 {[%emt 0:
00:10]} Ke3 {[%emt 0:00:10]} 89. Kg1 {[%emt 0:00:11]} Kf3 {[%emt 0:00:10]} 90.
Kh1 {[%emt 0:00:11]} Kg3 {[%emt 0:00:10]} 91. Kg1 {[%emt 0:00:10]} Ra1# {
[%emt 0:00:10] OnlyHungryKiwi won by checkmate} 0-1